[Event "Titled Tuesday Blitz May 23 Early 2023"]
[White "Levitskiy, Andrey"]
[Black "Smiechu"]
[WhiteFideId "14132885"]
[WhiteElo "2347"]
[BlackElo "2319"]
[Result "1-0"]
[Round "01"]
[TimeControl "180+2"]
[Date "2023.05.23"]
[WhiteClock "0:00:08"]
[BlackClock "0:00:04"]

1. e4 {[%clk 0:03:00]}  c5 {[%clk 0:02:58]} 2. Nf3 {[%clk 0:03:00]}  g6 {[%clk 0:02:59]} 3. d4 {[%clk 0:02:59]}  cxd4 {[%clk 0:03:00]} 4. Nxd4 {[%clk 0:02:59]}  Nc6 {[%clk 0:03:00]} 5. c4 {[%clk 0:03:00]}  Nf6 {[%clk 0:02:59]} 6. Nc3 {[%clk 0:03:00]}  Nxd4 {[%clk 0:03:00]} 7. Qxd4 {[%clk 0:03:00]}  d6 {[%clk 0:03:01]} 8. Be2 {[%clk 0:03:01]}  Bg7 {[%clk 0:03:01]} 9. Be3 {[%clk 0:03:01]}  O-O {[%clk 0:03:02]} 10. Qd2 {[%clk 0:03:00]}  a5 {[%clk 0:03:02]} 11. O-O {[%clk 0:03:00]}  a4 {[%clk 0:03:02]} 12. Rad1 {[%clk 0:03:00]}  Qa5 {[%clk 0:03:02]} 13. Bd4 {[%clk 0:02:59]}  Bd7 {[%clk 0:02:56]} 14. f4 {[%clk 0:02:58]}  Rfc8 {[%clk 0:02:56]} 15. b3 {[%clk 0:02:30]}  axb3 {[%clk 0:02:54]} 16. axb3 {[%clk 0:02:31]}  Qb4 {[%clk 0:02:53]} 17. Bxf6 {[%clk 0:02:26]}  Bxf6 {[%clk 0:02:52]} 18. Nd5 {[%clk 0:02:26]}  Qxd2 {[%clk 0:01:52]} 19. Nxf6+ {[%clk 0:02:18]}  Kg7 {[%clk 0:01:52]} 20. Rxd2 {[%clk 0:02:19]}  Kxf6 {[%clk 0:01:49]} 21. e5+ {[%clk 0:02:19]}  Kg7 {[%clk 0:01:32]} 22. exd6 {[%clk 0:02:17]}  exd6 {[%clk 0:01:32]} 23. Rxd6 {[%clk 0:02:18]}  Bc6 {[%clk 0:01:31]} 24. Bf3 {[%clk 0:02:06]}  Ra2 {[%clk 0:01:28]} 25. h3 {[%clk 0:01:58]}  Rb2 {[%clk 0:01:25]} 26. Bxc6 {[%clk 0:01:57]}  bxc6 {[%clk 0:01:26]} 27. Rf3 {[%clk 0:01:57]}  c5 {[%clk 0:01:23]} 28. Rd5 {[%clk 0:01:50]}  h5 {[%clk 0:01:20]} 29. h4 {[%clk 0:01:45]}  Ra8 {[%clk 0:00:54]} 30. Rxc5 {[%clk 0:01:30]}  Raa2 {[%clk 0:00:54]} 31. Rg5 {[%clk 0:01:20]}  f6 {[%clk 0:00:47]} 32. Rgg3 {[%clk 0:01:20]}  Kf7 {[%clk 0:00:42]} 33. f5 {[%clk 0:01:20]}  Ra1+ {[%clk 0:00:37]} 34. Kh2 {[%clk 0:01:12]}  Rbb1 {[%clk 0:00:29]} 35. Rxg6 {[%clk 0:01:06]}  Rh1+ {[%clk 0:00:24]} 36. Kg3 {[%clk 0:01:06]}  Rhg1 {[%clk 0:00:24]} 37. c5 {[%clk 0:00:48]}  Ra2 {[%clk 0:00:23]} 38. Kh2 {[%clk 0:00:44]}  Rc1 {[%clk 0:00:22]} 39. b4 {[%clk 0:00:42]}  Rb2 {[%clk 0:00:22]} 40. Rd3 {[%clk 0:00:31]}  Rc4 {[%clk 0:00:19]} 41. Rd7+ {[%clk 0:00:30]}  Ke8 {[%clk 0:00:19]} 42. Rh7 {[%clk 0:00:30]}  Rxh4+ {[%clk 0:00:17]} 43. Kg3 {[%clk 0:00:30]}  Rg4+ {[%clk 0:00:13]} 44. Rxg4 {[%clk 0:00:31]}  hxg4 {[%clk 0:00:14]} 45. Rb7 {[%clk 0:00:29]}  Kd8 {[%clk 0:00:12]} 46. c6 {[%clk 0:00:29]}  Kc8 {[%clk 0:00:13]} 47. b5 {[%clk 0:00:29]}  Rb4 {[%clk 0:00:12]} 48. Kh4 {[%clk 0:00:25]}  Rc4 {[%clk 0:00:11]} 49. g3 {[%clk 0:00:23]}  Rb4 {[%clk 0:00:11]} 50. Kh5 {[%clk 0:00:21]}  Rc4 {[%clk 0:00:10]} 51. Kg6 {[%clk 0:00:20]}  Rc3 {[%clk 0:00:11]} 52. Kxf6 {[%clk 0:00:20]}  Rxg3 {[%clk 0:00:12]} 53. b6 {[%clk 0:00:21]}  Rc3 {[%clk 0:00:10]} 54. Rc7+ {[%clk 0:00:19]}  Kb8 {[%clk 0:00:10]} 55. Rb7+ {[%clk 0:00:09]}  Kc8 {[%clk 0:00:09]} 56. Rc7+ {[%clk 0:00:08]}  Kb8 {[%clk 0:00:09]} 57. Ke5 {[%clk 0:00:09]}  g3 {[%clk 0:00:09]} 58. Kd5 {[%clk 0:00:08]}  g2 {[%clk 0:00:06]} 59. Rg7 {[%clk 0:00:08]}  Rd3+ {[%clk 0:00:06]} 60. Ke4 {[%clk 0:00:09]}  Rd8 {[%clk 0:00:04]} 61. c7+ {[%clk 0:00:08]} 1-0


[Site "https://www.chess.com"]

[Event "Titled Tuesday Blitz May 23 Early 2023"]
[White "Manon-og, Ramon Jr."]
[Black "Kononenko, Dmitry"]
[WhiteFideId "5200776"]
[BlackFideId "14113538"]
[WhiteElo "2318"]
[BlackElo "2198"]
[Result "0-1"]
[Round "01"]
[TimeControl "180+2"]
[Date "2023.05.23"]
[WhiteClock "0:00:07"]
[BlackClock "0:00:07"]

1. e4 {[%clk 0:02:57]}  d5 {[%clk 0:02:57]} 2. exd5 {[%clk 0:02:57]}  Qxd5 {[%clk 0:02:58]} 3. Nc3 {[%clk 0:02:57]}  Qa5 {[%clk 0:02:58]} 4. d4 {[%clk 0:02:58]}  Nf6 {[%clk 0:02:59]} 5. Nf3 {[%clk 0:02:58]}  Bg4 {[%clk 0:02:58]} 6. h3 {[%clk 0:02:58]}  Bh5 {[%clk 0:02:57]} 7. g4 {[%clk 0:02:59]}  Bg6 {[%clk 0:02:57]} 8. Bg2 {[%clk 0:02:59]}  c6 {[%clk 0:02:56]} 9. O-O {[%clk 0:02:58]}  e6 {[%clk 0:02:55]} 10. Ne5 {[%clk 0:02:58]}  Nbd7 {[%clk 0:02:55]} 11. Nxg6 {[%clk 0:02:54]}  hxg6 {[%clk 0:02:54]} 12. Bd2 {[%clk 0:02:54]}  Qc7 {[%clk 0:02:52]} 13. Qf3 {[%clk 0:02:51]}  Bd6 {[%clk 0:02:51]} 14. Rfe1 {[%clk 0:02:42]}  O-O-O {[%clk 0:02:50]} 15. g5 {[%clk 0:02:38]}  Nd5 {[%clk 0:02:48]} 16. Qxf7 {[%clk 0:02:36]}  Bh2+ {[%clk 0:02:40]} 17. Kh1 {[%clk 0:02:30]}  Rhf8 {[%clk 0:02:36]} 18. Qxe6 {[%clk 0:02:23]}  Rxf2 {[%clk 0:02:36]} 19. Re2 {[%clk 0:01:59]}  Rxe2 {[%clk 0:02:36]} 20. Nxe2 {[%clk 0:02:00]}  Nf4 {[%clk 0:02:30]} 21. Nxf4 {[%clk 0:01:47]}  Bxf4 {[%clk 0:02:31]} 22. Bb4 {[%clk 0:01:39]}  Bxg5 {[%clk 0:02:23]} 23. Qxg6 {[%clk 0:01:32]}  Bf6 {[%clk 0:02:18]} 24. Bc3 {[%clk 0:01:20]}  Nb6 {[%clk 0:02:08]} 25. Re1 {[%clk 0:01:12]}  Qf4 {[%clk 0:01:55]} 26. Re8 {[%clk 0:00:56]}  Nd5 {[%clk 0:01:51]} 27. Rxd8+ {[%clk 0:00:56]}  Kxd8 {[%clk 0:01:49]} 28. Qf7 {[%clk 0:00:41]}  Qc1+ {[%clk 0:01:40]} 29. Kh2 {[%clk 0:00:40]}  Qf4+ {[%clk 0:01:40]} 30. Kh1 {[%clk 0:00:41]}  Ne3 {[%clk 0:01:28]} 31. Qxb7 {[%clk 0:00:20]}  Nxg2 {[%clk 0:01:22]} 32. Ba5+ {[%clk 0:00:20]}  Ke8 {[%clk 0:01:19]} 33. Qxc6+ {[%clk 0:00:20]}  Kf7 {[%clk 0:01:20]} 34. Qxg2 {[%clk 0:00:19]}  Bxd4 {[%clk 0:01:14]} 35. Qd5+ {[%clk 0:00:19]}  Kg6 {[%clk 0:01:12]} 36. Qg2+ {[%clk 0:00:18]}  Kh7 {[%clk 0:01:12]} 37. Be1 {[%clk 0:00:18]}  Qe3 {[%clk 0:01:08]} 38. Qf1 {[%clk 0:00:13]}  Qe4+ {[%clk 0:01:06]} 39. Kh2 {[%clk 0:00:11]}  Qxc2+ {[%clk 0:01:03]} 40. Qg2 {[%clk 0:00:10]}  Qd3 {[%clk 0:00:48]} 41. Bg3 {[%clk 0:00:07]}  Qe3 {[%clk 0:00:45]} 42. b3 {[%clk 0:00:06]}  a6 {[%clk 0:00:44]} 43. h4 {[%clk 0:00:07]}  Qd3 {[%clk 0:00:42]} 44. Kh3 {[%clk 0:00:05]}  Qb1 {[%clk 0:00:38]} 45. Kh2 {[%clk 0:00:06]}  Bf6 {[%clk 0:00:38]} 46. Qe2 {[%clk 0:00:05]}  Qg6 {[%clk 0:00:31]} 47. Qxa6 {[%clk 0:00:05]}  Qg4 {[%clk 0:00:14]} 48. Qd3+ {[%clk 0:00:04]}  Kh6 {[%clk 0:00:12]} 49. Qe3+ {[%clk 0:00:04]}  Kh7 {[%clk 0:00:12]} 50. Qf4 {[%clk 0:00:04]}  Qe2+ {[%clk 0:00:12]} 51. Kh3 {[%clk 0:00:05]}  Qe6+ {[%clk 0:00:12]} 52. Qg4 {[%clk 0:00:05]}  Qd5 {[%clk 0:00:11]} 53. a4 {[%clk 0:00:03]}  Qh1+ {[%clk 0:00:11]} 54. Bh2 {[%clk 0:00:03]}  Qf1+ {[%clk 0:00:10]} 55. Qg2 {[%clk 0:00:04]}  Qf5+ {[%clk 0:00:08]} 56. Qg4 {[%clk 0:00:04]}  Qf1+ {[%clk 0:00:08]} 57. Qg2 {[%clk 0:00:04]}  Qd3+ {[%clk 0:00:09]} 58. Qg3 {[%clk 0:00:05]}  Qd7+ {[%clk 0:00:09]} 59. Qg4 {[%clk 0:00:05]}  Qd3+ {[%clk 0:00:08]} 60. Bg3 {[%clk 0:00:06]}  Qb1 {[%clk 0:00:08]} 61. Qh5+ {[%clk 0:00:06]}  Kg8 {[%clk 0:00:09]} 62. Qe8+ {[%clk 0:00:07]}  Kh7 {[%clk 0:00:09]} 63. Qe3 {[%clk 0:00:07]}  Kg8 {[%clk 0:00:10]} 64. b4 {[%clk 0:00:07]}  Qxb4 {[%clk 0:00:09]} 65. Qe6+ {[%clk 0:00:08]}  Kh7 {[%clk 0:00:08]} 66. Qf5+ {[%clk 0:00:08]}  Kg8 {[%clk 0:00:08]} 67. a5 {[%clk 0:00:09]}  Qa4 {[%clk 0:00:07]} 68. Qd5+ {[%clk 0:00:09]}  Kh7 {[%clk 0:00:07]} 69. Qf5+ {[%clk 0:00:10]}  Kg8 {[%clk 0:00:07]} 70. Qe5 {[%clk 0:00:10]}  Bxe5 {[%clk 0:00:07]} 71. Bxe5 {[%clk 0:00:07]}  Qxa5 {[%clk 0:00:07]} 0-1


[Site "https://www.chess.com"]

[Event "Titled Tuesday Blitz May 23 Early 2023"]
[White "Agibileg, Uurtsaikh"]
[Black "Goldin, Roman"]
[WhiteFideId "4901606"]
[BlackFideId "2803860"]
[WhiteElo "2353"]
[BlackElo "2312"]
[Result "1-0"]
[Round "01"]
[TimeControl "180+2"]
[Date "2023.05.23"]
[WhiteClock "0:01:19"]
[BlackClock "0:00:00"]

1. d4 {[%clk 0:03:00]}  Nf6 {[%clk 0:02:59]} 2. c4 {[%clk 0:02:59]}  c6 {[%clk 0:02:56]} 3. Nc3 {[%clk 0:02:56]}  Qb6 {[%clk 0:02:50]} 4. e4 {[%clk 0:02:52]}  d6 {[%clk 0:02:48]} 5. Rb1 {[%clk 0:02:47]}  e5 {[%clk 0:02:46]} 6. Nf3 {[%clk 0:02:38]}  Nbd7 {[%clk 0:02:28]} 7. Be3 {[%clk 0:02:37]}  Qa5 {[%clk 0:02:22]} 8. Bd3 {[%clk 0:02:32]}  g6 {[%clk 0:02:20]} 9. O-O {[%clk 0:02:31]}  Bg7 {[%clk 0:02:20]} 10. b4 {[%clk 0:02:31]}  Qc7 {[%clk 0:02:17]} 11. d5 {[%clk 0:02:31]}  O-O {[%clk 0:02:17]} 12. h3 {[%clk 0:02:25]}  cxd5 {[%clk 0:02:08]} 13. Nb5 {[%clk 0:02:21]}  Qb8 {[%clk 0:02:04]} 14. cxd5 {[%clk 0:02:21]}  a6 {[%clk 0:02:00]} 15. Nc3 {[%clk 0:02:20]}  Qc7 {[%clk 0:01:53]} 16. Qd2 {[%clk 0:02:20]}  Nh5 {[%clk 0:01:51]} 17. Rfc1 {[%clk 0:02:19]}  Qd8 {[%clk 0:01:51]} 18. b5 {[%clk 0:02:10]}  a5 {[%clk 0:01:48]} 19. b6 {[%clk 0:01:55]}  Nc5 {[%clk 0:01:47]} 20. Nb5 {[%clk 0:01:47]}  Nxd3 {[%clk 0:01:26]} 21. Qxd3 {[%clk 0:01:47]}  Bd7 {[%clk 0:01:26]} 22. Nxd6 {[%clk 0:01:46]}  Rb8 {[%clk 0:01:03]} 23. Rc7 {[%clk 0:01:43]}  f5 {[%clk 0:00:57]} 24. Bg5 {[%clk 0:01:40]}  Bf6 {[%clk 0:00:51]} 25. Bxf6 {[%clk 0:01:35]}  Nxf6 {[%clk 0:00:51]} 26. Nxe5 {[%clk 0:01:34]}  Qe7 {[%clk 0:00:43]} 27. Nxd7 {[%clk 0:01:32]}  Nxd7 {[%clk 0:00:31]} 28. Nxb7 {[%clk 0:01:24]}  fxe4 {[%clk 0:00:29]} 29. Qd4 {[%clk 0:01:25]}  e3 {[%clk 0:00:19]} 30. Qxe3 {[%clk 0:01:24]}  Qxe3 {[%clk 0:00:07]} 31. fxe3 {[%clk 0:01:24]}  Ne5 {[%clk 0:00:07]} 32. Nc5 {[%clk 0:01:20]}  Nc4 {[%clk 0:00:00]} 33. Nd7 {[%clk 0:01:19]} 1-0


[Site "https://www.chess.com"]

[Event "Titled Tuesday Blitz May 23 Early 2023"]
[White "Isajevsky, Anton"]
[Black "Li, Hui"]
[WhiteFideId "4142500"]
[BlackFideId "15400310"]
[WhiteElo "2510"]
[BlackElo "1966"]
[Result "1-0"]
[Round "01"]
[TimeControl "180+2"]
[Date "2023.05.23"]
[WhiteClock "0:01:16"]
[BlackClock "0:01:18"]

1. c4 {[%clk 0:02:59]}  e6 {[%clk 0:02:43]} 2. Nf3 {[%clk 0:02:59]}  d5 {[%clk 0:02:44]} 3. e3 {[%clk 0:02:59]}  Nf6 {[%clk 0:02:44]} 4. Nc3 {[%clk 0:02:59]}  b6 {[%clk 0:02:40]} 5. b3 {[%clk 0:02:57]}  Bb7 {[%clk 0:02:39]} 6. Bb2 {[%clk 0:02:57]}  Be7 {[%clk 0:02:36]} 7. cxd5 {[%clk 0:02:56]}  exd5 {[%clk 0:02:30]} 8. g3 {[%clk 0:02:32]}  O-O {[%clk 0:02:25]} 9. Bg2 {[%clk 0:02:32]}  c5 {[%clk 0:02:21]} 10. O-O {[%clk 0:02:32]}  d4 {[%clk 0:02:17]} 11. exd4 {[%clk 0:02:32]}  cxd4 {[%clk 0:02:16]} 12. Nb5 {[%clk 0:02:27]}  d3 {[%clk 0:02:11]} 13. Rc1 {[%clk 0:02:25]}  Bc5 {[%clk 0:02:04]} 14. b4 {[%clk 0:02:11]}  Bxb4 {[%clk 0:01:56]} 15. Nc7 {[%clk 0:02:11]}  Nbd7 {[%clk 0:01:51]} 16. Nxa8 {[%clk 0:02:10]}  Qxa8 {[%clk 0:01:51]} 17. Nh4 {[%clk 0:01:37]}  Bxg2 {[%clk 0:01:47]} 18. Nxg2 {[%clk 0:01:37]}  Ne4 {[%clk 0:01:42]} 19. Qg4 {[%clk 0:01:17]}  Re8 {[%clk 0:01:18]} 20. Qxg7# {[%clk 0:01:16]} 1-0


[Site "https://www.chess.com"]

[Event "Titled Tuesday Blitz May 23 Early 2023"]
[White "Principe, Gerson"]
[Black "Pg, Mohd Omar Ak Hira"]
[WhiteFideId "3804550"]
[BlackFideId "10500103"]
[WhiteElo "2229"]
[BlackElo "2167"]
[Result "0-1"]
[Round "01"]
[TimeControl "180+2"]
[Date "2023.05.23"]
[WhiteClock "0:00:00"]
[BlackClock "0:00:11"]

1. Nf3 {[%clk 0:02:59]}  Nf6 {[%clk 0:02:59]} 2. b3 {[%clk 0:02:59]}  g6 {[%clk 0:02:59]} 3. g3 {[%clk 0:02:59]}  Bg7 {[%clk 0:02:59]} 4. Bb2 {[%clk 0:03:00]}  O-O {[%clk 0:03:00]} 5. Bg2 {[%clk 0:03:00]}  d5 {[%clk 0:03:00]} 6. O-O {[%clk 0:03:01]}  c5 {[%clk 0:03:00]} 7. e3 {[%clk 0:03:00]}  Nc6 {[%clk 0:03:01]} 8. d4 {[%clk 0:03:00]}  b6 {[%clk 0:02:54]} 9. Nbd2 {[%clk 0:03:00]}  Bb7 {[%clk 0:02:49]} 10. c4 {[%clk 0:02:58]}  cxd4 {[%clk 0:02:43]} 11. Nxd4 {[%clk 0:02:57]}  Nxd4 {[%clk 0:02:42]} 12. Bxd4 {[%clk 0:02:57]}  Qd7 {[%clk 0:02:35]} 13. Rc1 {[%clk 0:02:52]}  Rfd8 {[%clk 0:02:34]} 14. Qc2 {[%clk 0:02:46]}  Rac8 {[%clk 0:02:29]} 15. Qb2 {[%clk 0:02:45]}  dxc4 {[%clk 0:01:44]} 16. Bxb7 {[%clk 0:02:42]}  Qxb7 {[%clk 0:01:45]} 17. Nxc4 {[%clk 0:02:43]}  Ne4 {[%clk 0:01:12]} 18. Bxg7 {[%clk 0:02:16]}  Ng5 {[%clk 0:01:11]} 19. f3 {[%clk 0:01:58]}  Nxf3+ {[%clk 0:01:11]} 20. Kf2 {[%clk 0:01:56]}  Ng5 {[%clk 0:01:07]} 21. Bd4 {[%clk 0:01:41]}  Nh3+ {[%clk 0:00:58]} 22. Ke1 {[%clk 0:01:40]}  Qe4 {[%clk 0:00:53]} 23. Rd1 {[%clk 0:01:35]}  b5 {[%clk 0:00:50]} 24. Nd2 {[%clk 0:01:12]}  Qg2 {[%clk 0:00:33]} 25. Nf3 {[%clk 0:01:01]}  Rc2 {[%clk 0:00:31]} 26. Qxc2 {[%clk 0:00:24]}  Qxc2 {[%clk 0:00:30]} 27. Rd2 {[%clk 0:00:25]}  Qb1+ {[%clk 0:00:29]} 28. Ke2 {[%clk 0:00:25]}  Qe4 {[%clk 0:00:29]} 29. Rfd1 {[%clk 0:00:20]}  f6 {[%clk 0:00:27]} 30. Bxa7 {[%clk 0:00:18]}  Rxd2+ {[%clk 0:00:25]} 31. Rxd2 {[%clk 0:00:18]}  Qb7 {[%clk 0:00:22]} 32. Bc5 {[%clk 0:00:17]}  h6 {[%clk 0:00:21]} 33. a3 {[%clk 0:00:16]}  Ng5 {[%clk 0:00:21]} 34. Nxg5 {[%clk 0:00:12]}  hxg5 {[%clk 0:00:21]} 35. b4 {[%clk 0:00:03]}  Kf7 {[%clk 0:00:21]} 36. Kd3 {[%clk 0:00:02]}  Ke6 {[%clk 0:00:19]} 37. Kc3 {[%clk 0:00:03]}  Qh1 {[%clk 0:00:18]} 38. Kc2 {[%clk 0:00:02]}  Qa1 {[%clk 0:00:17]} 39. Kd3 {[%clk 0:00:03]}  Qxa3+ {[%clk 0:00:17]} 40. Ke2 {[%clk 0:00:04]}  Qc1 {[%clk 0:00:17]} 41. Rd1 {[%clk 0:00:03]}  Qc4+ {[%clk 0:00:17]} 42. Kf2 {[%clk 0:00:03]}  f5 {[%clk 0:00:17]} 43. Rd2 {[%clk 0:00:03]}  f4 {[%clk 0:00:17]} 44. exf4 {[%clk 0:00:02]}  gxf4 {[%clk 0:00:17]} 45. Re2+ {[%clk 0:00:03]}  Kf5 {[%clk 0:00:17]} 46. Rxe7 {[%clk 0:00:03]}  fxg3+ {[%clk 0:00:18]} 47. hxg3 {[%clk 0:00:03]}  Kg4 {[%clk 0:00:17]} 48. Re2 {[%clk 0:00:03]}  Qd3 {[%clk 0:00:14]} 49. Re3 {[%clk 0:00:02]}  Qd2+ {[%clk 0:00:14]} 50. Re2 {[%clk 0:00:03]}  Qd5 {[%clk 0:00:14]} 51. Re3 {[%clk 0:00:02]}  Qh1 {[%clk 0:00:13]} 52. Ke2 {[%clk 0:00:02]}  Qg2+ {[%clk 0:00:13]} 53. Kd3 {[%clk 0:00:03]}  Qf1+ {[%clk 0:00:13]} 54. Kd4 {[%clk 0:00:03]}  Qc4+ {[%clk 0:00:13]} 55. Ke5 {[%clk 0:00:03]}  Kg5 {[%clk 0:00:12]} 56. Re4 {[%clk 0:00:02]}  Qf7 {[%clk 0:00:12]} 57. Re3 {[%clk 0:00:03]}  Qf6+ {[%clk 0:00:12]} 58. Kd5 {[%clk 0:00:03]}  Qf7+ {[%clk 0:00:10]} 59. Ke4 {[%clk 0:00:04]}  Qc4+ {[%clk 0:00:10]} 60. Kf3 {[%clk 0:00:04]}  Kf5 {[%clk 0:00:10]} 61. Kf2 {[%clk 0:00:04]}  g5 {[%clk 0:00:11]} 62. Rf3+ {[%clk 0:00:05]}  Kg6 {[%clk 0:00:10]} 63. Re3 {[%clk 0:00:06]}  g4 {[%clk 0:00:11]} 64. Re2 {[%clk 0:00:05]}  Kf5 {[%clk 0:00:11]} 65. Rd2 {[%clk 0:00:05]}  Qc3 {[%clk 0:00:10]} 66. Ke1 {[%clk 0:00:04]}  Qxg3+ {[%clk 0:00:10]} 67. Rf2+ {[%clk 0:00:04]}  Ke4 {[%clk 0:00:09]} 68. Ke2 {[%clk 0:00:05]}  Qd3+ {[%clk 0:00:09]} 69. Ke1 {[%clk 0:00:05]}  Qc3+ {[%clk 0:00:10]} 70. Kf1 {[%clk 0:00:05]}  Qc1+ {[%clk 0:00:10]} 71. Kg2 {[%clk 0:00:06]}  Qc3 {[%clk 0:00:09]} 72. Re2+ {[%clk 0:00:06]}  Kf5 {[%clk 0:00:09]} 73. Rf2+ {[%clk 0:00:05]}  Kg5 {[%clk 0:00:09]} 74. Be7+ {[%clk 0:00:05]}  Kh5 {[%clk 0:00:09]} 75. Bc5 {[%clk 0:00:04]}  Qd3 {[%clk 0:00:09]} 76. Rf1 {[%clk 0:00:02]}  Qe4+ {[%clk 0:00:09]} 77. Kg3 {[%clk 0:00:02]}  Qd3+ {[%clk 0:00:10]} 78. Kg2 {[%clk 0:00:02]}  Qh3+ {[%clk 0:00:10]} 79. Kg1 {[%clk 0:00:03]}  g3 {[%clk 0:00:10]} 80. Re1 {[%clk 0:00:01]}  Qh2+ {[%clk 0:00:10]} 81. Kf1 {[%clk 0:00:00]}  g2+ {[%clk 0:00:11]} 0-1


[Site "https://www.chess.com"]

[Event "Titled Tuesday Blitz May 23 Early 2023"]
[White "Manukyan, Sargis A."]
[Black "Bashkansky, Ethan"]
[WhiteFideId "13303970"]
[BlackFideId "2071533"]
[WhiteElo "2187"]
[BlackElo "2300"]
[Result "1-0"]
[Round "01"]
[TimeControl "180+2"]
[Date "2023.05.23"]
[WhiteClock "0:01:08"]
[BlackClock "0:00:21"]

1. d4 {[%clk 0:02:58]}  f5 {[%clk 0:02:59]} 2. Nc3 {[%clk 0:02:57]}  Nf6 {[%clk 0:02:59]} 3. Nf3 {[%clk 0:02:57]}  e6 {[%clk 0:02:53]} 4. Bg5 {[%clk 0:02:53]}  d5 {[%clk 0:02:50]} 5. Ne5 {[%clk 0:02:49]}  Nbd7 {[%clk 0:02:41]} 6. e3 {[%clk 0:02:43]}  Be7 {[%clk 0:02:22]} 7. Nxd7 {[%clk 0:02:22]}  Bxd7 {[%clk 0:02:19]} 8. Bd3 {[%clk 0:02:20]}  O-O {[%clk 0:02:19]} 9. Ne2 {[%clk 0:02:18]}  h6 {[%clk 0:02:11]} 10. Bf4 {[%clk 0:02:14]}  c5 {[%clk 0:01:58]} 11. c3 {[%clk 0:02:13]}  c4 {[%clk 0:01:58]} 12. Bc2 {[%clk 0:02:12]}  Qe8 {[%clk 0:01:53]} 13. Be5 {[%clk 0:02:13]}  Ng4 {[%clk 0:01:50]} 14. Bg3 {[%clk 0:02:09]}  b5 {[%clk 0:01:37]} 15. a3 {[%clk 0:02:03]}  a5 {[%clk 0:01:34]} 16. h3 {[%clk 0:02:03]}  Nf6 {[%clk 0:01:32]} 17. O-O {[%clk 0:02:03]}  b4 {[%clk 0:01:28]} 18. axb4 {[%clk 0:02:03]}  axb4 {[%clk 0:01:29]} 19. Rxa8 {[%clk 0:02:01]}  Qxa8 {[%clk 0:01:30]} 20. Nf4 {[%clk 0:02:01]}  b3 {[%clk 0:01:22]} 21. Bb1 {[%clk 0:02:01]}  Kf7 {[%clk 0:01:16]} 22. f3 {[%clk 0:01:55]}  Bd6 {[%clk 0:01:01]} 23. e4 {[%clk 0:01:53]}  dxe4 {[%clk 0:00:52]} 24. fxe4 {[%clk 0:01:33]}  Nxe4 {[%clk 0:00:50]} 25. Bh2 {[%clk 0:01:16]}  g5 {[%clk 0:00:47]} 26. Qh5+ {[%clk 0:01:15]}  Kf6 {[%clk 0:00:30]} 27. Qxh6+ {[%clk 0:01:09]}  Ke7 {[%clk 0:00:28]} 28. Ng6+ {[%clk 0:01:08]}  Kd8 {[%clk 0:00:21]} 29. Bxd6 {[%clk 0:01:08]} 1-0


[Site "https://www.chess.com"]

[Event "Titled Tuesday Blitz May 23 Early 2023"]
[White "Zampronha, Wladimir Camilo"]
[Black "Korchmar, Vasiliy"]
[WhiteFideId "2103087"]
[BlackFideId "24131750"]
[WhiteElo "2176"]
[BlackElo "2370"]
[Result "0-1"]
[Round "01"]
[TimeControl "180+2"]
[Date "2023.05.23"]
[WhiteClock "0:00:00"]
[BlackClock "0:00:32"]

1. e4 {[%clk 0:02:55]}  c5 {[%clk 0:02:58]} 2. Nf3 {[%clk 0:02:55]}  d6 {[%clk 0:02:58]} 3. d4 {[%clk 0:02:56]}  cxd4 {[%clk 0:02:59]} 4. Nxd4 {[%clk 0:02:56]}  Nf6 {[%clk 0:03:00]} 5. Nc3 {[%clk 0:02:56]}  Nc6 {[%clk 0:02:59]} 6. Bg5 {[%clk 0:02:55]}  Bd7 {[%clk 0:02:59]} 7. Qd2 {[%clk 0:02:55]}  a6 {[%clk 0:02:58]} 8. O-O-O {[%clk 0:02:55]}  e6 {[%clk 0:02:59]} 9. f4 {[%clk 0:02:55]}  Be7 {[%clk 0:02:57]} 10. Nf3 {[%clk 0:02:52]}  b5 {[%clk 0:02:56]} 11. e5 {[%clk 0:02:45]}  b4 {[%clk 0:02:53]} 12. exf6 {[%clk 0:02:43]}  bxc3 {[%clk 0:02:52]} 13. Qxc3 {[%clk 0:02:44]}  gxf6 {[%clk 0:02:53]} 14. Kb1 {[%clk 0:02:28]}  Rg8 {[%clk 0:02:51]} 15. Bh4 {[%clk 0:02:24]}  Rb8 {[%clk 0:02:51]} 16. Bxa6 {[%clk 0:02:01]}  d5 {[%clk 0:02:35]} 17. Bd3 {[%clk 0:01:53]}  Qb6 {[%clk 0:01:50]} 18. b3 {[%clk 0:01:39]}  Nb4 {[%clk 0:01:29]} 19. Kb2 {[%clk 0:01:09]}  Qa5 {[%clk 0:01:17]} 20. Ra1 {[%clk 0:01:05]}  Qa3+ {[%clk 0:00:42]} 21. Kb1 {[%clk 0:00:52]}  Rxg2 {[%clk 0:00:42]} 22. Rg1 {[%clk 0:00:26]}  Rxg1+ {[%clk 0:00:40]} 23. Nxg1 {[%clk 0:00:27]}  Rc8 {[%clk 0:00:40]} 24. Qb2 {[%clk 0:00:25]}  Qa7 {[%clk 0:00:40]} 25. Nf3 {[%clk 0:00:21]}  Qe3 {[%clk 0:00:36]} 26. Nd4 {[%clk 0:00:08]}  Nxd3 {[%clk 0:00:34]} 27. cxd3 {[%clk 0:00:00]}  Qg1+ {[%clk 0:00:32]} 0-1


[Site "https://www.chess.com"]

[Event "Titled Tuesday Blitz May 23 Early 2023"]
[White "mohsengabr2002"]
[Black "Al-Tarboush, Ward"]
[BlackFideId "7601450"]
[WhiteElo "2283"]
[BlackElo "2265"]
[Result "0-1"]
[Round "01"]
[TimeControl "180+2"]
[Date "2023.05.23"]
[WhiteClock "0:00:38"]
[BlackClock "0:00:56"]

1. e4 {[%clk 0:02:59]}  e6 {[%clk 0:02:57]} 2. d3 {[%clk 0:02:58]}  d5 {[%clk 0:02:57]} 3. Nd2 {[%clk 0:02:58]}  Nf6 {[%clk 0:02:56]} 4. Ngf3 {[%clk 0:02:59]}  b6 {[%clk 0:02:55]} 5. g3 {[%clk 0:02:59]}  Bb7 {[%clk 0:02:52]} 6. Qe2 {[%clk 0:02:55]}  Be7 {[%clk 0:02:52]} 7. Bg2 {[%clk 0:02:54]}  c5 {[%clk 0:02:51]} 8. e5 {[%clk 0:02:53]}  Nfd7 {[%clk 0:02:51]} 9. O-O {[%clk 0:02:53]}  Nc6 {[%clk 0:02:51]} 10. Re1 {[%clk 0:02:53]}  Qc7 {[%clk 0:02:51]} 11. Nf1 {[%clk 0:02:52]}  O-O-O {[%clk 0:02:48]} 12. h4 {[%clk 0:02:52]}  h6 {[%clk 0:02:45]} 13. c4 {[%clk 0:02:51]}  d4 {[%clk 0:02:44]} 14. a3 {[%clk 0:02:51]}  a5 {[%clk 0:02:43]} 15. Bd2 {[%clk 0:02:36]}  g5 {[%clk 0:02:40]} 16. hxg5 {[%clk 0:02:35]}  hxg5 {[%clk 0:02:38]} 17. Nxg5 {[%clk 0:02:35]}  Ncxe5 {[%clk 0:02:24]} 18. Nf3 {[%clk 0:02:11]}  Qc6 {[%clk 0:02:18]} 19. Nh4 {[%clk 0:02:08]}  Qxg2+ {[%clk 0:02:16]} 20. Nxg2 {[%clk 0:02:07]}  Nf3+ {[%clk 0:02:17]} 21. Qxf3 {[%clk 0:02:06]}  Bxf3 {[%clk 0:02:18]} 22. Nh2 {[%clk 0:02:05]}  Bc6 {[%clk 0:02:15]} 23. b4 {[%clk 0:02:03]}  Rh7 {[%clk 0:01:57]} 24. f4 {[%clk 0:01:38]}  Nf6 {[%clk 0:01:45]} 25. bxa5 {[%clk 0:01:35]}  Rdh8 {[%clk 0:01:43]} 26. Nh4 {[%clk 0:01:30]}  Nh5 {[%clk 0:01:43]} 27. Nf1 {[%clk 0:01:10]}  Nxg3 {[%clk 0:01:41]} 28. Nxg3 {[%clk 0:01:10]}  Bxh4 {[%clk 0:01:40]} 29. Ne4 {[%clk 0:01:08]}  Bxe1 {[%clk 0:01:28]} 30. Bxe1 {[%clk 0:01:08]}  Rh1+ {[%clk 0:01:22]} 31. Kf2 {[%clk 0:01:08]}  R8h2+ {[%clk 0:01:21]} 32. Kg3 {[%clk 0:01:08]}  f5 {[%clk 0:01:12]} 33. Bf2 {[%clk 0:00:49]}  fxe4 {[%clk 0:01:06]} 34. Rxh1 {[%clk 0:00:46]}  Rxh1 {[%clk 0:01:06]} 35. dxe4 {[%clk 0:00:45]}  Bxe4 {[%clk 0:01:00]} 36. axb6 {[%clk 0:00:44]}  Rb1 {[%clk 0:00:59]} 37. f5 {[%clk 0:00:41]}  exf5 {[%clk 0:00:57]} 38. Kf4 {[%clk 0:00:41]}  Rf1 {[%clk 0:00:57]} 39. Ke5 {[%clk 0:00:38]}  Rxf2 {[%clk 0:00:56]} 0-1


[Site "https://www.chess.com"]